bitfinex/quotes_ETHUSD_20240811
["timestamp","ask_amount","ask_price","bid_price","bid_amount"]
[1723378338881,2.6415,2650.0,2649.4,2.64205]
[1723378339075,2.6415,2650.0,2649.4,5.28409]
[1723378339281,3.192187,2650.2,2649.5,2.64198]
[1723378339509,2.64143,2650.1,2649.5,2.64198]
[1723378339720,3.192187,2650.2,2649.6,2.71730347]
[1723378340017,2.86742,2650.4,2649.7,2.64174]
[1723378340170,5.50859,2650.4,2649.7,2.70026426]
[1723378340380,0.777169,2650.3,2649.8,2.64164]
[1723378340623,5.64096,2650.6,2649.8,5.23536188]
[1723378340624,2.64096,2650.6,2649.8,5.23536188]
[1723378340985,2.64096,2650.6,2649.9,2.6416]
[1723378341129,2.2631,2651.1,2649.9,2.6416]
[1723378341130,0.264096,2650.5,2649.9,2.6416]
[1723378341327,2.6411,2650.5,2649.9,0.05785654]
[1723378341539,2.64114,2650.4,2649.9,0.05785654]
[1723378342036,2.64124,2650.3,2649.9,0.05785654]
[1723378342242,2.6415,2650.0,2649.9,0.05785654]
[1723378342408,2.6415,2650.1,2649.6,2.6419]
[1723378342605,0.38846395,2650.4,2649.9,0.05785654]
[1723378342829,2.64105,2650.5,2649.8,2.64167]
[1723378343118,2.64105,2650.5,2650.0,0.05711668]
[1723378343423,2.64105,2650.5,2649.8,2.64167]
[1723378343424,2.64121,2650.3,2650.1,0.05707286]
[1723378343594,2.64103,2650.5,2649.8,2.64167]
[1723378343790,2.64103,2650.5,2650.2,0.05702904]
[1723378343791,2.64111,2650.4,2650.2,0.05702904]
[1723378344029,2.64111,2650.4,2649.8,2.905837]
[1723378344030,2.64103,2650.5,2650.0,2.64149]
[1723378344201,2.64103,2650.5,2650.3,0.05698523]
[1723378344402,2.64121,2650.3,2649.5,2.64191]
[1723378344606,2.64142,2650.1,2649.6,2.64188]
[1723378345008,2.64124,2650.3,2649.4,2.4008]
[1723378345200,2.3711,2650.8,2649.4,2.4008]
[1723378345201,2.64109,2650.5,2649.9,2.64154]
[1723378345399,2.64109,2650.5,2650.0,2.64149]
[1723378345706,2.64107,2650.5,2650.0,2.64149]
[1723378345896,5.546247,2650.5,2650.0,2.64149]
[1723378346100,5.546247,2650.5,2649.9,2.71705526]
[1723378346430,2.905177,2650.5,2649.9,2.71705526]
[1723378346737,2.905177,2650.5,2650.0,2.6415]
[1723378346936,2.905177,2650.5,2649.8,2.64161]
[1723378346937,2.64121,2650.3,2649.8,2.64161]
[1723378347412,2.64121,2650.3,2649.6,5.2837]
[1723378347738,0.2905177,2650.4,2649.4,2.4008]
[1723378348038,5.28332,2649.9,2649.3,2.64215]
[1723378348243,2.64173,2649.8,2649.2,2.64224]
[1723378348454,2.64166,2649.9,2649.2,2.64224]
[1723378348818,2.64172,2649.8,2649.2,2.64224]
[1723378349017,2.64172,2649.8,2649.2,2.64222]
[1723378349831,2.64182,2649.7,2649.2,2.64222]
[1723378350002,2.64166,2649.9,2649.3,2.64211]
[1723378350204,2.64137,2650.2,2649.2,0.504302]
[1723378350425,0.38873792,2650.3,2649.5,2.642]
[1723378350743,2.64146,2650.1,2649.4,2.64206]
[1723378351037,3.38873792,2650.3,2649.5,0.05727611]
[1723378351038,2.64154,2650.0,2649.5,0.05727611]
[1723378351512,3.21729379,2650.2,2649.7,2.4008]
[1723378351716,2.64131,2650.2,2649.7,2.4008]
[1723378351899,5.64122,2650.3,2649.7,5.04255]
[1723378352404,2.64137,2650.2,2649.7,2.4008]
[1723378353039,2.64151,2650.0,2649.8,0.05714461]
[1723378353218,2.64136,2650.2,2649.6,2.64189]
[1723378353413,2.64136,2650.2,2649.9,0.05707972]
[1723378353752,2.64197,2649.6,2649.0,2.64245]
[1723378353917,9.6711,2650.1,2648.9,2.4008]
[1723378354244,9.6711,2650.1,2648.8,2.64266]
[1723378354245,2.64216,2649.4,2648.8,2.64266]
[1723378354545,5.28433,2649.4,2649.0,0.05747427]
[1723378354731,2.64223,2649.3,2648.9,0.05751812]
[1723378354928,2.64223,2649.3,2649.1,0.05743042]
[1723378355141,2.64216,2649.4,2649.0,0.05747427]
[1723378355446,2.64216,2649.4,2648.8,2.64265]
[1723378355447,2.64216,2649.4,2649.1,0.05743042]
[1723378355735,5.28434,2649.4,2648.8,2.64264]
[1723378355925,5.28434,2649.4,2649.2,0.05738657]
[1723378355926,5.28435,2649.4,2649.2,0.05738657]
[1723378356131,5.28435,2649.4,2648.8,2.64264]
[1723378356437,2.6423,2649.2,2648.6,7.68647]
[1723378356646,2.64195,2649.6,2649.0,2.64249]
[1723378356816,7.3,2649.7,2649.1,0.07549585]
[1723378357018,7.3,2649.7,2649.2,2.64222]
[1723378357337,5.0131,2649.6,2648.9,2.64253]
[1723378357548,5.0131,2649.6,2649.0,0.075493]
[1723378357726,5.0131,2649.6,2649.0,2.64245]
[1723378357727,7.6551,2649.6,2649.0,2.64245]
[1723378357932,5.0131,2649.6,2649.0,2.64245]
[1723378358131,5.0131,2649.6,2649.0,5.2849]
[1723378358343,5.01307,2649.6,2649.0,2.64245]
[1723378358519,2.64206,2649.5,2649.0,2.64245]
[1723378358855,2.64206,2649.5,2648.9,2.64254]
[1723378359348,2.64206,2649.5,2649.0,2.64249]
[1723378360630,2.3711,2649.6,2649.0,2.64243]
[1723378360832,7.3,2649.7,2649.2,2.64229]
[1723378361036,7.3,2649.7,2649.3,2.64218]
[1723378361423,2.64183,2649.7,2649.1,2.71780027]
[1723378361622,2.64183,2649.7,2649.1,0.07549027]
[1723378361855,2.64183,2649.7,2649.1,2.71784027]
[1723378362220,2.64191,2649.6,2649.1,0.07549027]
[1723378362554,2.64183,2649.7,2649.2,2.6423]
[1723378362761,2.64171,2649.8,2649.2,2.6423]
[1723378362922,2.64186,2649.7,2649.0,5.04324]
[1723378363125,2.64173,2649.8,2648.8,2.64267]
[1723378363318,2.64216,2649.4,2648.8,2.64264]
[1723378363628,2.64216,2649.4,2648.4,2.64304]
[1723378363629,2.64241,2649.1,2648.4,2.64304]
[1723378363966,2.64225,2649.3,2648.6,2.64288]
[1723378364138,2.64225,2649.3,2648.6,2.64283]
[1723378364456,2.64246,2649.1,2648.5,2.907214]
[1723378364676,2.4733,2649.4,2648.2,4.90098]
[1723378364823,11.79873159,2649.3,2648.2,2.64328]
[1723378365024,2.64281,2648.7,2648.2,2.64328]
[1723378365222,2.64281,2648.7,2648.3,0.05799216]
[1723378365468,2.64281,2648.7,2648.2,2.64328]
[1723378365622,2.64281,2648.7,2648.4,0.05794828]
[1723378365983,2.64281,2648.7,2648.2,2.64328]
[1723378366459,2.6429,2648.6,2648.0,2.64343]
[1723378366672,2.6429,2648.6,2647.9,2.2577]
[1723378366673,2.64306,2648.5,2648.3,0.05799216]
[1723378366821,2.6429,2648.6,2647.9,4.90127]
[1723378367021,2.64303,2648.5,2648.4,0.05794828]
[1723378367279,2.64315,2648.4,2647.4,2.2627]
[1723378367451,2.64315,2648.4,2647.4,0.005]
[1723378367452,2.64386,2647.7,2647.4,0.005]
[1723378368487,2.644,2647.5,2647.4,0.005]
[1723378368697,7.7613,2647.5,2647.4,0.005]
[1723378368837,2.644,2647.5,2647.4,0.005]
[1723378369242,5.816785,2647.5,2647.4,0.005]
[1723378369541,3.172785,2647.5,2647.4,0.005]
[1723378369775,5.816785,2647.5,2647.4,0.005]
[1723378372202,2.64383,2647.7,2647.4,0.005]
[1723378372414,2.644,2647.5,2647.4,0.05972407]
[1723378372624,2.64383,2647.7,2647.4,0.05972407]
[1723378373315,7.3,2648.1,2647.5,2.2577]
[1723378373613,2.64357,2648.0,2647.5,2.8293919]
[1723378373920,2.64328,2648.3,2647.7,2.64373]
[1723378374116,2.64358,2648.0,2647.5,2.2577]
[1723378374316,2.64372,2647.8,2647.4,0.005]
[1723378374519,5.28749,2647.8,2647.4,0.005]
[1723378374708,2.64372,2647.8,2647.4,0.005]
[1723378375289,2.64381,2647.7,2647.4,0.005]
[1723378375893,2.64372,2647.8,2647.4,0.005]
[1723378376316,5.2875,2647.8,2647.4,0.005]
[1723378376520,9.94323,2648.3,2647.4,0.005]
[1723378376521,2.64335,2648.2,2647.4,0.005]
[1723378376690,2.64335,2648.2,2647.6,2.64384]
[1723378376877,2.64335,2648.2,2647.6,0.2724371]
[1723378377083,2.64335,2648.2,2647.6,0.3479653]
[1723378377628,2.64342,2648.1,2647.4,0.005]
[1723378377781,2.64366,2647.9,2647.4,0.005]
[1723378378427,2.6437,2647.8,2647.4,0.005]
[1723378378842,9.94323,2648.3,2647.4,0.005]
[1723378378843,2.64382,2647.7,2647.4,0.005]
[1723378379337,5.28772,2647.7,2647.4,0.005]
[1723378379500,2.64382,2647.7,2647.4,0.005]
[1723378379845,2.64382,2647.7,2647.5,0.0557853]
[1723378380347,2.4733,2648.0,2647.5,0.0557853]
[1723378380348,2.64377,2647.8,2647.5,0.0557853]
[1723378380504,2.6439,2647.6,2647.5,0.0557853]
[1723378380707,10.3,2648.3,2647.4,2.6491]
[1723378380708,12.7733,2648.3,2647.4,2.6491]
[1723378380997,5.64338,2648.2,2647.5,2.2577]
[1723378381210,2.64356,2648.0,2647.5,2.80423217]
[1723378381442,2.64356,2648.0,2647.5,0.54653217]
[1723378381750,2.64356,2648.0,2647.5,0.05585217]
[1723378382159,2.64314,2648.4,2647.7,2.64374]
[1723378382160,2.6431,2648.4,2647.7,2.64374]
[1723378382444,2.64336,2648.2,2647.5,2.71944843]
[1723378382646,2.64336,2648.2,2647.8,0.05566768]
[1723378382850,2.64336,2648.2,2647.6,0.27244484]
[1723378383149,5.287,2648.0,2647.9,0.05562379]
[1723378383388,2.64372,2647.8,2647.4,0.005]
[1723378383650,2.64396,2647.6,2647.4,0.005]
[1723378383825,5.28795,2647.6,2647.5,0.05569382]
[1723378384035,2.64396,2647.6,2647.5,0.05569382]
[1723378384230,5.28795,2647.6,2647.5,0.05569382]
[1723378384432,2.64396,2647.6,2647.5,0.05569382]
[1723378384812,2.4843,2648.5,2647.6,2.6439]
[1723378385017,2.64351,2648.0,2647.7,0.50542938]
[1723378385256,2.64336,2648.2,2647.7,0.05560602]
[1723378385552,2.6436,2647.9,2647.7,0.05560602]
[1723378385852,2.64346,2648.1,2647.7,0.05560602]
[1723378386056,2.64346,2648.1,2647.4,0.005]
[1723378386057,2.6437,2647.8,2647.4,0.005]
[1723378386282,2.64392,2647.6,2647.4,0.005]
[1723378386489,2.644,2647.5,2647.4,0.005]
[1723378386644,2.64388,2647.7,2647.4,0.005]
[1723378386843,2.6439,2647.6,2647.4,0.005]
[1723378387185,5.288,2647.5,2647.4,0.005]
[1723378387474,5.8168,2647.5,2647.4,0.005]
[1723378387688,2.644,2647.5,2647.4,0.005]
[1723378387884,2.64395,2647.6,2647.4,0.005]
[1723378388069,2.644,2647.5,2647.4,0.005]
[1723378388383,5.288,2647.5,2647.4,0.005]
[1723378388761,2.644,2647.5,2647.4,0.005]
[1723378389082,3.28732383,2647.9,2647.4,0.005]
[1723378389083,3.0,2647.9,2647.4,0.005]
[1723378389239,2.6438,2647.7,2647.4,0.005]
[1723378389442,2.64398,2647.6,2647.4,0.005]
[1723378389652,2.644,2647.5,2647.4,0.005]
[1723378389874,5.288,2647.5,2647.4,0.005]
[1723378390285,3.0,2647.9,2647.4,0.005]
[1723378390489,2.64381,2647.7,2647.4,0.005]
[1723378390798,2.64361,2647.9,2647.4,0.005]
[1723378390961,2.64361,2647.9,2647.4,0.769809]
[1723378391145,9.94325,2648.3,2647.4,3.413849]
[1723378391346,2.64347,2648.1,2647.5,2.7194745]
[1723378391660,2.64347,2648.1,2647.6,2.69976866]
[1723378391990,2.64331,2648.2,2647.6,3.31863488]
[1723378392147,7.3,2648.3,2647.6,3.31863488]
[1723378392484,2.6433,2648.2,2647.7,2.6438]
[1723378392786,2.64306,2648.5,2647.9,4.99824]
[1723378392986,12.58574,2648.7,2648.1,2.64335]
[1723378393189,12.58574,2648.7,2648.0,0.0755207]
[1723378393190,3.94979569,2648.6,2648.0,0.13122379]
[1723378393351,2.64297,2648.6,2648.2,0.05543587]
[1723378393548,2.64301,2648.5,2648.0,0.58847708]
[1723378393749,5.2862,2648.4,2648.3,0.05539199]
[1723378393952,7.3,2648.7,2647.5,2.3547]
[1723378393953,2.64356,2648.0,2647.5,2.3547]
[1723378394176,2.64362,2647.9,2647.5,2.3547]
[1723378394393,2.64362,2647.9,2647.6,0.05569921]
[1723378394559,5.2876,2647.7,2647.6,0.05569921]
[1723378394995,5.288,2647.5,2647.4,0.005]
[1723378395299,8.72518,2647.5,2647.4,0.005]
[1723378395470,14.75948,2647.5,2647.4,0.005]
[1723378395850,16.06688886,2647.5,2647.4,0.005]
[1723378397383,15.51688886,2647.5,2647.4,0.005]
[1723378397669,16.06688886,2647.5,2647.4,0.005]
[1723378397857,13.42288886,2647.5,2647.4,0.005]
[1723378398188,9.59540886,2647.5,2647.4,0.005]
[1723378399283,12.23940886,2647.5,2647.4,0.005]
[1723378399456,10.14540886,2647.5,2647.4,0.005]
[1723378399872,12.23940886,2647.5,2647.4,0.005]
[1723378400569,11.482,2647.5,2647.4,0.005]
[1723378400802,13.93758226,2647.5,2647.4,0.005]
[1723378401370,19.06588226,2647.5,2647.4,0.005]
[1723378401572,16.42188226,2647.5,2647.4,0.005]
[1723378402416,2.64499,2646.6,2646.0,2.3947]
[1723378402714,2.64497,2646.6,2646.0,2.63417]
[1723378402925,2.64516,2646.4,2646.0,2.63417]
[1723378403219,10.3,2647.0,2646.0,0.04]
[1723378403220,2.64529,2646.3,2646.0,0.04]
[1723378403428,2.64505,2646.5,2646.0,0.04]
[1723378403826,2.64478,2646.8,2646.0,0.30856]
[1723378404137,2.645,2646.5,2646.0,0.04]
[1723378404995,0.59222263,2647.0,2646.5,2.64492]
[1723378405310,2.64446,2647.1,2646.0,2.76105329]
[1723378405311,2.64526,2646.3,2646.0,2.4593]
[1723378405633,2.3375,2647.3,2646.2,2.64529]
[1723378405634,2.64484,2646.7,2646.2,2.64529]
[1723378405935,0.59218653,2647.0,2646.4,2.64508]
[1723378406115,2.64468,2646.9,2646.4,2.4193]
[1723378406332,2.64483,2646.7,2646.4,2.4193]
[1723378406690,2.64459,2647.0,2646.4,2.4193]
[1723378406920,2.64466,2646.9,2646.4,2.4193]
[1723378407121,2.64482,2646.7,2646.5,0.24193]
[1723378407316,2.64477,2646.8,2646.1,5.03124]
[1723378407511,2.64477,2646.8,2646.1,2.893024]
[1723378407512,2.6449,2646.6,2646.1,2.893024]
[1723378407738,2.64503,2646.5,2646.1,2.893024]
[1723378408027,5.64444,2647.1,2646.1,2.3859]
[1723378408028,2.64484,2646.7,2646.1,2.3859]
[1723378408199,2.6451,2646.4,2646.1,2.3859]
[1723378408396,2.6453,2646.2,2646.0,0.04]
[1723378408736,2.64527,2646.3,2646.0,0.04]
[1723378409118,5.2908,2646.1,2646.0,0.04]
[1723378409324,7.5558,2646.1,2646.0,0.04]
[1723378409535,5.2922,2645.4,2645.3,0.01578147]
[1723378409735,2.6461,2645.4,2645.3,0.01578147]
[1723378410277,7.5572,2645.4,2645.3,0.01578147]
[1723378410424,3.0,2645.4,2645.3,0.01578147]
[1723378410626,5.856793,2645.4,2645.3,0.01578147]
[1723378410844,10.2033,2645.4,2645.3,0.01578147]
[1723378411036,13.7533,2645.4,2645.3,0.01578147]
[1723378411249,2.64746,2644.1,2643.4,5.03393]
[1723378411453,6.1961,2645.4,2643.5,2.64795]
[1723378411454,0.52665005,2644.8,2643.5,2.64795]
[1723378411672,2.64721,2644.3,2643.6,2.64783]
[1723378411851,2.6472,2644.4,2643.7,0.529578]
[1723378412055,2.6472,2644.4,2643.1,0.1280467]
[1723378412056,4.9133,2643.2,2643.1,0.1280467]
[1723378412254,4.9133,2643.2,2640.6,3.25418803]
[1723378412255,2.265,2643.1,2640.6,3.25418803]
[1723378412460,2.265,2643.1,2640.6,0.39420684]
[1723378412461,5.30162,2640.7,2640.6,0.39420684]
[1723378412637,0.59338915,2641.4,2640.0,0.02104463]
[1723378412862,2.265,2642.1,2640.0,0.02104463]
[1723378412863,2.65032,2641.2,2640.0,2.67251463]
[1723378413036,2.65041,2641.2,2640.0,2.67249463]
[1723378413238,2.65041,2641.2,2640.1,2.72714307]
[1723378413239,2.65031,2641.2,2640.1,2.72714307]
[1723378413443,2.265,2641.0,2640.0,0.02104463]
[1723378413664,2.65141,2640.1,2640.0,0.02104463]
[1723378414059,5.85282,2640.1,2640.0,0.02104463]
[1723378414233,0.585282,2640.1,2640.0,0.02104463]
[1723378414459,5.30282,2640.1,2640.0,0.02104463]
[1723378414686,2.65088,2640.7,2640.0,0.02104463]
[1723378414974,0.1,2641.8,2640.0,0.02104463]
[1723378414975,2.64946,2642.1,2640.2,2.65129]
[1723378415147,2.64946,2642.1,2640.0,0.07711048]
[1723378415148,2.65033,2641.2,2640.3,0.265129]
[1723378415351,2.65029,2641.3,2640.3,0.05822107]
[1723378415585,30.8449458,2641.7,2640.5,2.65099]
[1723378415754,33.4947558,2641.7,2640.8,2.6507]
[1723378415960,2.65001,2641.5,2640.6,0.265099]
[1723378416320,30.8449458,2641.7,2640.0,0.02104463]
[1723378416321,2.64991,2641.6,2640.0,0.02104463]
[1723378416523,30.8449458,2641.7,2640.6,2.65085]
[1723378416722,30.8449458,2641.7,2640.0,0.02104463]
[1723378416723,2.65001,2641.5,2640.0,0.02104463]
[1723378416914,2.65036,2641.2,2640.7,0.05804452]
[1723378417112,31.54533804,2641.1,2640.0,0.02104463]
[1723378417302,28.89492804,2641.0,2640.8,0.0580004]
[1723378417507,28.89492804,2641.0,2640.0,0.02104463]
[1723378417508,31.54545804,2641.0,2640.2,2.6513]
[1723378417705,24.50122804,2640.9,2640.2,0.26723446]
[1723378417906,0.38923047,2641.7,2640.0,0.02104463]
[1723378417907,0.38923047,2641.7,2641.1,2.65037]
[1723378418128,0.56311778,2642.7,2640.8,5.03661]
[1723378418129,2.6494,2642.1,2640.8,5.03661]
[1723378418329,2.64951,2642.0,2640.9,0.503661]
[1723378418503,2.64951,2642.0,2641.2,2.65021]
[1723378418710,2.64951,2642.0,2640.8,2.3859]
[1723378418711,2.6488,2642.7,2640.8,5.03659]
[1723378418904,0.38918138,2642.0,2640.1,2.65141]
[1723378419129,0.38918138,2642.0,2639.9,2.3859]
[1723378419130,2.65039,2641.2,2640.3,2.6512]
[1723378419303,2.65036,2641.2,2640.3,2.6512]
[1723378419496,2.65036,2641.2,2640.1,2.65139]
[1723378419696,2.65044,2641.1,2640.0,2.67255463]
[1723378419930,2.65035,2641.2,2640.4,2.6511]
[1723378420134,2.65028,2641.3,2640.0,0.09678429]
[1723378420336,0.265028,2641.2,2640.5,2.65098]
[1723378420644,2.65028,2641.3,2640.3,2.65121]
[1723378420844,2.65023,2641.3,2640.2,2.65129]
[1723378421138,2.65023,2641.3,2640.0,2.92076306]
[1723378421139,0.38922493,2641.9,2640.4,2.6511]
[1723378421300,3.03883493,2641.9,2641.1,2.65038]
[1723378421502,0.30388349,2641.8,2641.2,0.07571979]
[1723378421699,0.26488,2642.6,2641.3,2.65011]
[1723378421946,0.389225,2641.8,2641.4,2.65004]
[1723378422146,0.389225,2641.8,2641.5,2.65]
[1723378422435,2.6493,2642.2,2641.4,2.65008]
[1723378422845,3.038435,2642.3,2641.2,2.65027]
[1723378423008,3.38118816,2642.3,2641.3,0.60577847]
[1723378423202,3.38118816,2642.3,2641.4,2.65007]
[1723378423439,0.389225,2642.3,2640.7,0.378]
[1723378423770,0.389225,2642.3,2640.7,3.378]
[1723378423952,2.64961,2641.9,2640.7,3.0]
[1723378424104,2.6495,2642.1,2641.2,2.65027]
[1723378424306,0.389225,2642.3,2641.1,2.65036]
[1723378424539,2.6493,2642.2,2641.1,0.26505]
[1723378424746,2.6493,2642.2,2640.8,3.454373]
[1723378424747,0.389225,2642.3,2642.1,2.64933]
[1723378425042,2.64903,2642.5,2641.7,2.64977]
[1723378425253,2.64912,2642.4,2641.7,2.64977]
[1723378425416,2.64912,2642.4,2641.0,2.65044]
[1723378425417,2.64932,2642.2,2641.2,2.6503]
[1723378425624,0.38905141,2643.0,2640.8,2.2891]
[1723378425935,0.38905141,2643.0,2641.4,2.65003]
[1723378426327,2.64931,2642.2,2641.4,2.65003]
[1723378426533,2.64931,2642.2,2641.4,2.65009]
[1723378426715,0.529843,2642.2,2641.5,0.0574063]
[1723378426921,2.64921,2642.3,2641.0,2.65045]
[1723378427129,3.0,2642.8,2641.7,2.6498]
[1723378427329,0.3,2642.7,2641.7,2.6498]
[1723378427538,2.64872,2642.8,2641.9,2.64952]
[1723378427742,2.64872,2642.8,2642.1,2.64933]
[1723378427926,0.38905141,2643.0,2641.1,2.65033]
[1723378427927,0.38905141,2643.0,2642.2,2.6493]
[1723378428254,0.38905141,2643.0,2642.3,0.0756907]
[1723378428466,2.64833,2643.2,2642.5,2.649]
[1723378428774,2.64823,2643.3,2642.6,2.6489]
[1723378428920,0.264823,2643.3,2642.6,2.70582136]
[1723378429113,2.64802,2643.5,2642.6,2.70582136]
[1723378429114,2.64802,2643.5,2642.8,2.64867]
[1723378429313,2.64783,2643.7,2642.8,2.64867]
[1723378429314,2.64793,2643.6,2642.8,2.64867]
[1723378429618,2.64793,2643.6,2641.9,2.64955]
[1723378429619,2.64819,2643.4,2642.9,0.05624461]
[1723378429845,3.177516,2643.6,2642.9,0.05624461]
[1723378429846,2.64794,2643.6,2642.9,0.05624461]
[1723378430050,2.64771,2643.8,2643.0,2.64848]
[1723378430051,2.64781,2643.7,2643.0,2.64848]
[1723378430249,2.6471,2644.4,2642.1,2.64939]
[1723378430250,2.6472,2644.3,2642.5,2.64898]
[1723378430466,2.3601,2644.5,2642.5,2.64898]
[1723378430467,2.64764,2643.9,2643.1,0.05615651]
[1723378430625,2.3601,2644.5,2642.8,2.2891]
[1723378430626,2.64781,2643.7,2643.0,2.64849]
[1723378430827,2.912544,2643.8,2643.0,2.64849]
[1723378431056,2.64778,2643.8,2643.1,0.05615651]
[1723378431230,2.6477,2643.8,2643.1,0.05615651]
[1723378431420,2.64763,2643.9,2643.1,2.70451651]
[1723378431737,2.64757,2644.0,2643.3,2.64819]
[1723378431948,0.5295,2643.9,2643.4,2.64808]
[1723378432257,2.64761,2643.9,2643.4,0.05562862]
[1723378432463,2.6477,2643.8,2643.4,0.05562862]
[1723378432627,2.6477,2643.8,2643.2,2.64828]
[1723378432628,3.177231,2643.8,2643.2,2.64828]
[1723378432838,2.6476,2643.9,2643.5,0.05558458]
[1723378433027,2.6476,2643.9,2643.2,5.29649]
[1723378433365,0.38900992,2644.2,2643.4,2.64806]
[1723378433654,2.64704,2644.5,2643.7,2.64771]
[1723378433959,2.64704,2644.5,2643.3,0.05561262]
[1723378433960,2.6476,2643.9,2643.8,0.05539244]
[1723378434335,2.6475,2644.0,2643.1,2.64833]
[1723378434549,2.64733,2644.2,2643.3,2.64812]
[1723378434550,0.26475,2643.9,2643.3,2.64812]
[1723378434859,0.26475,2643.9,2643.2,0.05351869]
[1723378434860,3.03619125,2644.4,2643.7,2.64777]
[1723378435094,2.6472,2644.3,2643.7,2.64777]
[1723378435293,0.38904125,2644.4,2643.8,0.05323333]
[1723378435504,2.64672,2644.8,2643.8,0.05323333]
[1723378435799,2.6475,2644.0,2643.3,4.93728]
[1723378435961,0.38900874,2644.6,2643.3,2.2891]
[1723378435962,2.64774,2643.8,2643.3,2.2891]
[1723378436166,2.64781,2643.7,2643.4,0.05334955]
[1723378436363,2.64782,2643.7,2643.4,0.05334955]
[1723378436595,2.64781,2643.7,2643.4,0.05334955]
[1723378436810,3.38900874,2644.6,2642.7,2.2891]
[1723378436811,2.64743,2644.1,2642.7,2.2891]
[1723378436953,2.64837,2643.2,2642.7,2.2891]
[1723378437151,2.64821,2643.3,2642.8,0.05361385]
[1723378437351,2.64821,2643.3,2642.7,2.2891]
[1723378437565,2.64821,2643.3,2642.8,0.05361385]
[1723378437793,2.64821,2643.3,2642.7,4.93786]
[1723378438283,2.64848,2643.1,2642.8,0.05361385]
[1723378438484,5.2972,2642.9,2642.8,0.05361385]
[1723378438828,3.5802942,2643.9,2642.2,2.2891]
[1723378438829,2.64843,2643.1,2642.5,2.649]
[1723378439092,2.64828,2643.3,2642.5,2.649]
[1723378439093,2.64828,2643.3,2642.5,2.64896]
[1723378439297,2.64841,2643.1,2642.6,0.05370197]
[1723378439593,2.64848,2643.1,2642.6,0.05370197]
[1723378439892,2.6488,2642.7,2642.6,0.05370197]
[1723378440056,0.264848,2643.1,2641.0,0.24]
[1723378440057,2.64957,2642.0,2641.4,2.65009]
[1723378440253,2.64979,2641.8,2641.2,2.2891]
[1723378440453,2.64979,2641.8,2641.5,0.0541869]
[1723378440697,2.64954,2642.0,2641.3,2.65014]
[1723378440877,2.64954,2642.0,2641.6,0.0541428]
[1723378441082,6.2293142,2642.5,2641.2,4.93934]
[1723378441083,3.5802942,2642.5,2641.2,4.93934]
[1723378441386,3.5802942,2642.5,2641.0,0.24]
[1723378441387,3.5802942,2642.3,2641.0,0.24]
[1723378441569,5.30082,2641.1,2641.0,0.24]
[1723378441773,2.65033,2641.2,2641.0,0.24]
[1723378441962,2.65014,2641.4,2641.0,0.24]
[1723378442389,5.30082,2641.1,2641.0,0.24]
[1723378442800,2.65041,2641.1,2641.0,0.24]
[1723378443012,5.30082,2641.1,2641.0,0.24]
[1723378443432,8.746338,2641.1,2641.0,0.24]
[1723378443606,11.746338,2641.1,2641.0,0.24]
[1723378443911,13.05703423,2641.1,2641.0,0.24]
[1723378444310,3.445518,2641.1,2641.0,0.24]
[1723378444487,2.65041,2641.1,2641.0,0.24]
[1723378444677,3.57595754,2641.3,2641.0,0.24]
[1723378444678,2.65021,2641.3,2641.0,0.24]
[1723378445007,2.65041,2641.1,2641.0,0.24]
[1723378445321,2.65041,2641.1,2641.0,0.29299429]
[1723378445613,5.30082,2641.1,2641.0,0.24]
[1723378445909,2.65041,2641.1,2641.0,0.24]
[1723378446117,6.31281415,2641.1,2641.0,0.24]
[1723378446272,5.69012642,2641.1,2641.0,0.24]
[1723378446972,2.65141,2640.1,2640.0,0.02104463]
[1723378447175,2.65128,2640.3,2640.0,0.02104463]
[1723378447408,2.65105,2640.5,2640.0,0.02104463]
[1723378447612,2.65105,2640.5,2640.1,0.05261743]
[1723378447613,2.6512,2640.4,2640.1,0.05261743]
[1723378447909,2.6512,2640.4,2640.0,0.02104463]
[1723378447910,2.65104,2640.5,2640.0,0.02104463]
[1723378448227,2.65077,2640.8,2640.2,2.65131]
[1723378448403,2.65077,2640.8,2640.1,2.70412816]
[1723378448616,2.65077,2640.8,2640.3,0.05271987]
[1723378448617,0.530128,2640.8,2640.3,0.05271987]
[1723378448923,2.65141,2640.1,2640.0,0.02104463]
[1723378449217,7.95423,2640.1,2640.0,0.02104463]
[1723378449518,6.098243,2640.1,2640.0,0.02104463]
[1723378449880,8.749653,2640.1,2640.0,0.02104463]
[1723378450113,12.299653,2640.1,2640.0,0.02104463]
[1723378450417,6.15242264,2640.6,2640.0,0.02104463]
[1723378450604,5.30282,2640.1,2640.0,0.02104463]
[1723378450811,5.85282,2640.1,2640.0,0.02104463]
[1723378450979,8.85282,2640.1,2640.0,0.02104463]
[1723378451330,5.30253,2640.3,2640.0,0.02104463]
[1723378451502,5.30282,2640.1,2640.0,0.02104463]
[1723378452224,7.95423,2640.1,2640.0,0.02104463]
[1723378452531,7.95423,2640.1,2640.0,4.63e-06]
[1723378452532,9.299653,2640.1,2640.0,4.63e-06]
[1723378452734,12.299653,2640.1,2640.0,4.63e-06]
[1723378453030,6.098243,2640.1,2640.0,4.63e-06]
[1723378453317,2.65139,2640.2,2640.0,4.63e-06]
[1723378453517,2.65109,2640.5,2640.0,4.63e-06]
[1723378453736,3.57498325,2641.0,2638.6,2.65784]
[1723378453737,2.65282,2638.7,2638.6,0.005]
[1723378454018,21.71375232,2640.4,2638.2,1e-05]
[1723378454019,10.25506,2638.3,2638.2,1e-05]
[1723378454203,10.25506,2638.3,2637.8,0.1280467]
[1723378454204,3.47362311,2638.3,2637.8,0.1280467]